{"text_format":"1","workbook":"xlsx","n_sheets":1,"sheets":["Приложение 1"],"not_rendered":{"charts":0,"images":0,"macros":0,"external_links":0,"defined_names":0,"comments":0,"pivot_tables":0},"unopened":[],"bounds":{"document_bytes":16777216,"sheet_cells":100000,"rows_first":2000,"rows_last":500,"rows_between":2000,"halvings":0,"cell_chars":16384,"cell_head_chars":4096},"cells_cut":0,"cells_raw":0,"read":"whole","date_system":"1900"}

{"sheet":"Приложение 1","index":0,"n_rows":40,"n_cols":10,"rows_kept":40,"cut":false,"hidden":false,"merged":[[2,0,39,0],[2,8,38,8],[2,9,38,9],[39,1,39,3],[0,0,0,9]]}
["ПРИЛОЖЕНИЕ 1"]
["Обект","Отдел и под-отдел","Дървесен вид","Сортимент","мерна единица","Прогнозно количество дървесина пр.куб.м.","Начална цена лв./м3 без ДДС","Обща цена. лв. без ДДС","Гаранция за участие, лв.","Стъпка на наддаване, лв."]
["2020-01-18","389 ж","черен ","Едра - трупи за бичене - d на т.к. 18-29 см","пл.куб.м.",7,57,{"$f":"AVERAGE(F3*G3)","v":399}]
[null,null,"бор","Средна - технологична д-на","пр.куб.м.",22,23,{"$f":"AVERAGE(F4*G4)","v":506}]
[null,null,null,"Дребна - технологична д-на","пр.куб.м."]
[null,null,null,"Дърва - дърва за огрев","пр.куб.м.",73,23,{"$f":"AVERAGE(F6*G6)","v":1679}]
[null,null,"смърч","Едра - трупи за бичене - d на т.к. 18-29 см","пл.куб.м."]
[null,null,null,"Средна - технологична д-на","пр.куб.м.",15,23,{"$f":"AVERAGE(F8*G8)","v":345}]
[null,null,null,"Дребна - технологична д-на","пр.куб.м.",3,23,69]
[null,null,null,"Дърва - дърва за огрев","пр.куб.м.",33,23,759]
[]
[null,null,null,"Всичко за подотдела:","пл.куб.м.",95,null,{"$f":"SUM(H3:H11)","v":3757}]
[]
[null,"392 а","черен ","Едра - трупи за бичене - d на т.к. 18-29 см","пл.куб.м.",20,57,{"$f":"AVERAGE(F14*G14)","v":1140}]
[null,null,"бор","Средна - технологична д-на","пр.куб.м.",43,23,989]
[null,null,null,"Дребна - технологична д-на","пр.куб.м."]
[null,null,null,"Дърва - дърва за огрев","пр.куб.м.",75,23,{"$f":"AVERAGE(F17*G17)","v":1725}]
[]
[null,null,null,"Всичко за подотдела:","пл.куб.м.",91,null,{"$f":"SUM(H14:H18)","v":3854}]
[]
[null,"406 а","черен ","Едра - трупи за бичене - d на т.к. 18-29 см","пл.куб.м.",28,57,{"$f":"AVERAGE(F21*G21)","v":1596}]
[null,null,"бор","Средна - технологична д-на","пр.куб.м.",52,23,1196]
[null,null,null,"Дребна - технологична д-на","пр.куб.м."]
[null,null,null,"Дърва - дърва за огрев","пр.куб.м.",95,23,{"$f":"AVERAGE(F24*G24)","v":2185}]
[null,null,"липа","Едра - трупи за бичене - d на т.к. 18-29 см","пл.куб.м."]
[null,null,null,"Средна - технологична д-на","пр.куб.м."]
[null,null,null,"Дребна - технологична д-на","пр.куб.м."]
[null,null,null,"Дърва - дърва за огрев","пр.куб.м.",13,19,{"$f":"AVERAGE(F28*G28)","v":247}]
[]
[null,null,null,"Всичко за подотдела:","пл.куб.м.",124,null,{"$f":"SUM(H21:H29)","v":5224}]
[]
[null,"406 ж","черен ","Едра - трупи за бичене - d на т.к. 18-29 см","пл.куб.м.",19,57,{"$f":"AVERAGE(F32*G32)","v":1083}]
[null,null,"бор","Средна - технологична д-на","пр.куб.м.",30,23,690]
[null,null,null,"Дребна - технологична д-на","пр.куб.м."]
[null,null,null,"Дърва - дърва за огрев","пр.куб.м.",47,23,{"$f":"AVERAGE(F35*G35)","v":1081}]
[]
[null,null,null,"Всичко за подотдела:","пл.куб.м.",65,null,{"$f":"SUM(H32:H36)","v":2854}]
[]
[]
[null,"Общо за обекта:",null,null,"пл.куб.м.",375,null,15689,784,157]